bitfinex/quotes_ETHUSD_20220120
["timestamp","ask_amount","ask_price","bid_price","bid_amount"]
[1642719621390,0.00161576,3060.3,3059.3,0.00406847]
[1642719621649,0.1307,3060.2,3059.3,0.00406847]
[1642719621854,0.13174734,3060.2,3059.3,0.00406847]
[1642719622055,0.00104734,3060.2,3059.3,0.00406847]
[1642719622254,0.1307,3060.1,3059.3,0.00406847]
[1642719622455,0.94809,3060.1,3059.3,0.00406847]
[1642719622654,18.95,3060.0,3059.3,0.00406847]
[1642719622955,19.0807,3060.0,3059.3,0.00406847]
[1642719623156,0.4307,3060.0,3059.3,0.00406847]
[1642719623654,0.4307,3060.0,3059.1,0.00520532]
[1642719623655,0.1307,3060.0,3059.1,0.00520532]
[1642719623858,18.95,3060.1,3059.1,0.00520532]
[1642719623859,19.0807,3060.1,3059.1,0.00520532]
[1642719624061,0.81745,3059.9,3058.1,3.4305]
[1642719624261,0.5117,3059.8,3058.2,1.2478]
[1642719624458,22.55,3059.7,3058.2,1.17234048]
[1642719624659,1.1307,3059.6,3058.2,1.17234048]
[1642719624859,1.73581581,3059.6,3058.3,0.0022737]
[1642719625060,18.95454738,3059.5,3058.3,0.0022737]
[1642719625261,0.1307,3059.4,3058.3,0.0022737]
[1642719625489,1.41764,3059.2,3058.3,7.37e-05]
[1642719625689,18.95,3059.0,3058.3,7.37e-05]
[1642719625896,18.95,3058.7,3056.6,3.43329793]
[1642719626090,3.5118,3058.6,3056.7,2.77460334]
[1642719626291,0.81808,3058.2,3056.8,2.77460334]
[1642719626492,0.3,3058.0,3056.8,2.77460334]
[1642719626691,0.1308,3057.9,3056.9,0.00795793]
[1642719626892,19.4618,3057.9,3056.9,0.00795793]
[1642719627192,1.0,3057.8,3056.3,0.01136847]
[1642719627393,0.1308,3057.7,3056.4,2.77518636]
[1642719627594,0.1308,3057.7,3056.3,0.01136847]
[1642719627595,18.95,3057.5,3056.3,0.01136847]
[1642719627791,0.81811,3057.6,3056.5,0.01023162]
[1642719627792,0.1308,3057.4,3056.5,0.01023162]
[1642719627994,0.1308,3057.5,3056.1,0.01250532]
[1642719628192,0.1308,3057.6,3056.2,0.1308]
[1642719628395,0.1308,3057.6,3056.0,0.01307374]
[1642719628396,3.4228872,3057.7,3056.1,0.14330532]
[1642719628593,3.4228872,3057.7,3056.3,0.01136847]
[1642719628892,0.1308,3057.7,3056.3,0.01136847]
[1642719629134,0.1308,3057.7,3056.3,0.02355956]
[1642719629337,0.1308,3057.8,3056.3,0.02355956]
[1642719629538,2.50681431,3058.1,3056.5,0.8179563]
[1642719629539,0.1308,3058.0,3056.5,0.8179563]
[1642719629938,0.1308,3058.1,3056.6,0.0096632]
[1642719630140,0.00113685,3058.5,3056.6,0.08376535]
[1642719630340,0.00113685,3058.5,3057.0,0.01274197]
[1642719630540,0.00113685,3058.5,3057.5,0.8176608]
[1642719630738,0.00113685,3058.5,3057.5,1.1176608]
[1642719630942,0.00113685,3058.5,3057.6,0.00397896]
[1642719631438,0.00113685,3058.5,3057.6,0.07808111]
[1642719631638,3.30113685,3058.5,3057.7,0.8176473]
[1642719631839,3.30113685,3058.5,3057.7,2.23864784]
[1642719632037,3.30113685,3058.5,3057.8,1.63790312]
[1642719632239,3.30113685,3058.5,3057.9,0.3]
[1642719632438,3.30113685,3058.5,3057.9,0.31494918]
[1642719632639,3.30113685,3058.5,3058.0,0.38270527]
[1642719632902,3.685e-05,3058.5,3058.1,0.13819997]
[1642719633089,3.685e-05,3058.5,3058.2,0.381]
[1642719633290,3.685e-05,3058.5,3058.2,2.01736967]
[1642719633493,3.685e-05,3058.5,3058.3,0.30113685]
[1642719633690,3.685e-05,3058.5,3058.4,0.5117]
[1642719633892,0.13819997,3059.8,3058.4,2.56275535]
[1642719634090,0.1307,3060.7,3058.5,1.81725]
[1642719634291,0.00625266,3059.6,3058.7,4.0863051]
[1642719634491,0.00625266,3059.6,3058.8,0.1307]
[1642719634692,0.00568423,3059.5,3058.8,1.13175537]
[1642719634994,0.00511581,3059.4,3058.8,2.76629297]
[1642719635191,0.1307,3060.7,3059.1,1.65]
[1642719635394,0.1307,3060.7,3059.2,0.1307]
[1642719635591,0.00682108,3060.6,3059.4,1.6344295]
[1642719635892,0.00682108,3060.6,3059.4,5.537e-05]
[1642719635893,0.00625266,3060.5,3059.4,5.537e-05]
[1642719636095,0.81749,3060.4,3059.4,5.537e-05]
[1642719636293,0.01283958,3060.0,3059.4,5.537e-05]
[1642719636492,0.5117,3059.9,3059.4,5.537e-05]
[1642719636746,22.55074463,3059.3,3059.2,3.685e-05]
[1642719636943,23.65714463,3059.3,3059.2,3.685e-05]
[1642719637143,23.65714463,3059.3,3057.4,2.4532376]
[1642719637144,18.9533883,3059.2,3057.4,2.4532376]
[1642719637344,18.95,3059.2,3057.4,2.4532376]
[1642719637548,18.95,3059.2,3057.5,0.00970005]
[1642719637549,3.51919997,3059.1,3057.5,0.00970005]
[1642719637745,1.63602,3059.0,3057.5,0.01075545]
[1642719637950,1.63602,3059.0,3057.5,5.545e-05]
[1642719637951,0.0128302,3058.7,3057.5,5.545e-05]
[1642719638148,0.81804,3058.5,3057.5,5.545e-05]
[1642719638349,0.5118,3058.4,3057.5,5.545e-05]
[1642719638652,18.95454739,3058.3,3057.5,5.545e-05]
[1642719638852,0.5118,3058.2,3057.5,5.545e-05]
[1642719639048,1.81577897,3058.2,3057.5,5.545e-05]
[1642719639248,2.55608794,3058.1,3057.5,5.545e-05]
[1642719639449,18.95,3057.9,3057.5,5.545e-05]
[1642719639648,0.8118,3058.0,3057.5,5.545e-05]
[1642719639649,18.95,3057.7,3057.5,5.545e-05]
[1642719639850,3.6808,3057.6,3057.5,5.545e-05]
[1642719640052,3.55,3057.6,3057.5,5.545e-05]
[1642719640691,3.6808,3057.6,3057.5,5.545e-05]
[1642719640891,22.6308,3057.6,3057.5,5.545e-05]
[1642719641299,25.9308,3057.6,3057.5,5.545e-05]
[1642719641494,26.9308,3057.6,3057.5,5.545e-05]
[1642719641891,6.9808,3057.6,3057.5,5.545e-05]
[1642719642298,2.85,3057.5,3056.6,0.6]
[1642719642498,3.3,3057.6,3056.6,0.0010554]
[1642719642696,3.3,3057.6,3056.7,0.00454738]
[1642719642897,3.3,3057.6,3056.7,0.00560278]
[1642719643297,3.3,3057.6,3056.8,0.00397896]
[1642719643497,3.3,3057.6,3056.8,0.00503436]
[1642719643901,3.3,3057.6,3056.9,0.00341054]
[1642719644154,3.3,3057.6,3056.9,0.00446594]
[1642719644543,3.3,3057.6,3057.0,0.00284211]
[1642719644742,3.3,3057.6,3057.1,0.8177725]
[1642719644946,3.3,3057.6,3057.1,0.8188279]
[1642719645144,3.3,3057.6,3057.2,0.30170527]
[1642719645343,3.3,3057.6,3057.2,0.30276067]
[1642719645543,3.3,3057.6,3057.5,0.01257815]
[1642719645745,3.3,3057.6,3057.5,0.01363355]
[1642719645945,3.3,3057.6,3057.5,3.23516871]
[1642719646150,3.3,3057.6,3057.5,3.53516871]
[1642719646345,3.14287897,3057.6,3057.5,2.13129955]
[1642719646548,0.00113685,3057.7,3057.5,2.43129955]
[1642719646745,0.00113685,3057.7,3057.5,3.24889955]
[1642719646946,0.00113685,3057.7,3057.6,1.81758]
[1642719647144,0.00113685,3057.7,3057.6,1.81863546]
[1642719647345,0.00113685,3057.7,3057.6,0.81863546]
[1642719647544,0.00113685,3057.7,3057.6,4.89290943]
[1642719647745,0.00113685,3057.7,3057.6,3.89290943]
[1642719647990,0.00113685,3057.7,3057.6,4.89290943]
[1642719648191,0.13819997,3059.1,3057.7,2.7]
[1642719648391,0.13819997,3059.1,3058.3,1.63496]
[1642719648598,0.00738951,3059.0,3058.3,1.1185255]
[1642719648792,0.00738951,3059.0,3058.3,0.3010555]
[1642719648998,0.00682108,3058.9,3058.4,0.3]
[1642719649197,0.00682108,3058.9,3058.4,0.30105552]
[1642719649393,0.00625266,3058.8,3058.5,0.8174528]
[1642719649595,0.00625266,3058.8,3058.5,0.81850832]
[1642719649797,0.00568424,3058.7,3058.5,5.552e-05]
[1642719650193,1.32951,3059.2,3058.5,5.552e-05]
[1642719650194,3.55511581,3058.6,3058.5,5.552e-05]
[1642719650395,22.63581581,3058.6,3058.5,5.552e-05]
[1642719650798,22.63581581,3058.6,3057.0,0.1307]
[1642719650799,3.55,3058.5,3057.0,0.1307]
[1642719650997,18.95,3058.3,3057.3,0.00105552]
[1642719651199,2.32985,3058.2,3057.3,0.00105552]
[1642719651395,18.95,3058.1,3057.3,0.00105552]
[1642719651665,1.5118,3058.0,3057.1,0.0022737]
[1642719651858,1.5118,3058.0,3055.9,0.6]
[1642719651859,0.01253771,3057.7,3055.9,0.6]
[1642719652057,18.95,3057.5,3055.9,0.6]
[1642719652258,18.95,3057.5,3056.0,0.00625266]
[1642719652259,18.95,3057.3,3056.0,0.00625266]
[1642719652460,18.95,3057.1,3056.0,0.00625266]
[1642719652660,18.95,3056.9,3056.0,0.00625266]
[1642719652859,1.63692,3056.7,3056.0,0.00625266]
[1642719653060,0.5118,3056.6,3056.0,0.00625266]
[1642719653461,18.95,3056.5,3056.0,0.00625266]
[1642719653658,19.331,3056.5,3056.0,0.00625266]
[1642719655388,0.381,3056.5,3056.0,0.00625266]
[1642719656590,19.331,3056.5,3056.0,0.00625266]
[1642719657391,0.381,3056.5,3056.0,0.00625266]
[1642719657596,19.331,3056.5,3056.0,0.00625266]
[1642719658191,18.95,3056.3,3056.0,0.00625266]
[1642719658392,0.381,3056.2,3056.0,0.00625266]
[1642719658594,19.331,3056.2,3056.0,0.00625266]
[1642719658794,0.381,3056.2,3056.0,0.00625266]
[1642719660743,19.331,3056.2,3056.0,0.00625266]
[1642719661144,0.381,3056.2,3056.0,0.00625266]
[1642719661746,19.331,3056.2,3056.0,0.00625266]
[1642719662147,19.331,3056.2,3055.1,0.13819997]
[1642719662148,18.95,3056.0,3054.8,3.7103]
[1642719662352,1.19958,3055.9,3054.6,2.3193]
[1642719662550,2.33038,3055.9,3054.9,0.00625266]
[1642719662750,0.81873,3055.7,3054.9,0.00625266]
[1642719663023,0.81873,3055.7,3054.3,0.0096632]
[1642719663024,19.4618,3055.6,3054.3,0.0096632]
[1642719663222,19.7618,3055.6,3053.9,0.01193689]
[1642719663422,19.7618,3055.6,3054.4,0.00909477]
[1642719663423,0.81878,3055.3,3054.4,0.00909477]
[1642719663622,0.381,3055.2,3053.9,0.01193689]
[1642719664028,1.93322976,3055.1,3053.9,0.01193689]
[1642719664324,18.95,3054.9,3053.5,0.01421059]
[1642719664523,0.5118,3054.8,3053.5,0.01421059]
[1642719664723,18.95,3054.7,3053.6,0.01364216]
[1642719664933,0.381,3054.6,3053.6,0.01364216]
[1642719665123,0.381,3054.6,3053.1,1.5232309]
[1642719665124,19.331,3054.6,3053.2,0.01591586]
[1642719665325,0.1308,3054.5,3053.2,0.01591586]
[1642719665532,19.331,3054.4,3053.2,0.01591586]
[1642719665725,0.1308,3054.3,3053.2,0.01591586]
[1642719665925,0.381,3054.2,3053.2,0.01591586]
[1642719666125,3.3,3054.1,3053.1,1.48914676]
[1642719666325,0.381,3054.0,3053.1,1.48914676]
[1642719666642,0.00397897,3053.9,3053.1,1.48914676]
[1642719666862,19.46577897,3053.9,3053.1,1.48914676]
[1642719667046,1.00341055,3053.8,3053.1,1.48914676]
[1642719667245,0.5118,3053.7,3053.1,1.48914676]
[1642719667448,1.11464212,3053.7,3051.8,1.65068817]
[1642719667646,1.11464212,3053.7,3051.6,4.72396378]
[1642719667647,20.9522737,3053.6,3051.6,2.2267]
[1642719667848,0.81938,3053.3,3051.9,0.0073895]
[1642719668045,18.95,3053.1,3051.9,0.0073895]
[1642719668245,18.95,3053.1,3051.4,0.01023162]
[1642719668246,19.462,3053.0,3051.4,0.01023162]
[1642719668447,20.95495911,3052.9,3051.4,0.01023162]
[1642719668646,1.512,3052.8,3051.4,0.01023162]
[1642719668846,0.81955,3052.6,3051.4,0.01023162]
[1642719669047,1.33155,3052.5,3051.4,0.01023162]
[1642719669249,3.63155,3052.5,3051.4,0.01023162]
[1642719669447,4.763,3052.3,3051.0,0.01250531]
[1642719669647,18.95,3052.1,3051.0,0.01250531]
[1642719669848,0.81977,3051.9,3051.0,0.01250531]
[1642719670053,0.512,3051.8,3051.0,0.01250531]
[1642719670250,0.512,3051.8,3050.7,0.01421058]
[1642719670886,1.112,3051.8,3050.1,0.13819997]
[1642719671085,1.112,3051.8,3050.2,2.38622408]
[1642719671086,0.81981,3051.6,3050.2,2.38622408]
[1642719671284,0.512,3051.5,3050.2,2.38622408]
[1642719671486,0.512,3051.5,3050.3,2.38565566]
[1642719671685,0.512,3051.5,3050.4,2.36917138]
[1642719671887,0.512,3051.5,3050.4,2.38508723]
[1642719672088,0.2016,3051.6,3051.5,0.33042671]
[1642719672293,0.381,3051.7,3051.5,0.33042671]
[1642719672489,0.381,3051.7,3051.5,0.3400899]
[1642719672694,0.381,3051.7,3051.6,0.00909477]
[1642719673292,3.931,3051.7,3051.6,0.00909477]
[1642719673491,6.531,3051.7,3051.6,0.00909477]
[1642719673693,2.981,3051.7,3051.6,0.00909477]
[1642719674970,0.381,3051.7,3051.6,0.00909477]
[1642719675375,2.231,3051.7,3051.6,0.00909477]
[1642719676172,2.362,3051.7,3051.6,0.00909477]
[1642719676374,4.062,3051.7,3051.6,0.00909477]
[1642719676574,3.931,3051.7,3051.6,0.00909477]
[1642719676972,2.231,3051.7,3051.6,0.00909477]
[1642719677375,2.662,3051.7,3051.6,9.477e-05]
[1642719677574,2.662,3051.7,3051.5,0.08052148]
[1642719677575,3.55,3051.6,3051.5,0.08052148]
[1642719677776,4.062,3051.6,3051.5,2.148e-05]
[1642719678495,4.362,3051.6,3051.5,2.148e-05]
[1642719678697,3.55,3051.5,3050.1,0.13819997]
[1642719678901,0.01083717,3051.3,3050.1,0.13819997]
[1642719679097,0.512,3051.2,3050.2,0.00795793]
[1642719679300,18.95,3051.1,3050.2,0.00795793]
[1642719679502,0.512,3051.0,3050.2,0.00795793]
[1642719679698,2.2772,3051.0,3050.2,0.00795793]
[1642719679900,2.2772,3051.0,3049.8,0.01023162]
[1642719679901,18.95,3050.9,3049.8,0.01023162]
[1642719680099,3.39721,3051.0,3049.4,0.01250532]
[1642719680100,18.95,3050.7,3049.4,0.01250532]
[1642719680300,0.512,3050.6,3049.3,0.01307374]
[1642719680506,18.95,3050.5,3049.3,0.01307374]
[1642719680711,0.512,3050.4,3048.9,0.01534743]
[1642719680901,18.95,3050.3,3048.9,0.01534743]
[1642719681203,0.512,3050.2,3048.9,0.01534743]
[1642719681399,0.35001677,3050.2,3049.3,0.01280227]
[1642719681835,0.35001677,3050.2,3049.4,0.01250532]
[1642719683441,0.35001677,3050.2,3048.9,0.01534743]
[1642719684443,0.35001677,3050.2,3048.8,0.1035474]
[1642719684444,3.681,3050.1,3048.8,0.1035474]
[1642719684646,0.381,3050.0,3048.8,0.1035474]
[1642719684846,0.38725265,3050.0,3048.8,0.1035474]
[1642719685044,0.00568423,3049.9,3048.8,0.1035474]
[1642719685245,0.381,3049.8,3048.8,0.1035474]
[1642719685493,0.38611581,3049.8,3048.8,0.1035474]
[1642719685800,0.00454738,3049.7,3048.8,0.1035474]
[1642719685993,0.381,3049.8,3049.7,0.00074836]
[1642719686193,2.731,3049.8,3049.7,0.00074836]
[1642719687094,18.95,3050.1,3050.0,0.56472794]
[1642719687494,3.85170527,3050.0,3049.7,0.00074836]
[1642719687699,0.512,3049.9,3049.7,0.00074836]
[1642719687896,18.98465257,3049.8,3049.7,0.00074836]
[1642719688095,24.72865257,3049.8,3049.7,0.00074836]
[1642719688299,25.72865257,3049.8,3049.7,0.00074836]
[1642719688497,3.55,3049.7,3048.5,0.2359835]
[1642719688701,3.55,3049.7,3048.5,8.35e-05]
[1642719688702,0.82036,3049.5,3048.5,8.35e-05]
[1642719688901,0.39373705,3049.6,3048.6,5.27e-06]
[1642719688902,6.40436,3048.9,3048.6,5.27e-06]
[1642719689145,23.713,3048.7,3048.6,5.27e-06]
[1642719689349,24.2252,3048.7,3048.6,5.27e-06]
[1642719689548,24.2252,3048.7,3048.5,8.35e-05]
[1642719689549,26.0766,3048.7,3048.5,8.35e-05]
[1642719689749,50.4442,3048.6,3048.5,8.35e-05]
[1642719689952,45.4999165,3048.5,3047.2,0.618]
[1642719690150,4.763,3048.2,3047.2,0.618]
[1642719690355,0.5122,3048.1,3047.3,8.951e-05]
[1642719690551,4.763,3047.4,3045.7,2.01248815]
[1642719690756,19.4622,3047.3,3045.4,3.8557]
[1642719690956,19.4622,3047.3,3045.8,0.00852635]
[1642719690957,20.4622,3047.3,3045.8,0.00852635]
[1642719691156,18.95,3047.2,3045.8,0.00852635]
[1642719691363,0.5122,3047.1,3045.8,0.00852635]
[1642719691559,0.381,3047.1,3045.9,0.01266434]
[1642719691959,0.381,3047.1,3046.0,0.0073895]
[1642719692358,1.9,3047.0,3045.5,1.82005384]
[1642719692559,0.381,3046.9,3045.6,0.01287975]
[1642719692760,0.00511581,3046.9,3045.9,0.82063]
[1642719693001,3.8655,3047.6,3045.9,0.82063]
[1642719693002,0.00454738,3046.8,3045.9,0.82063]
[1642719693203,0.00454738,3046.8,3046.4,0.01237496]
[1642719693401,3.6227,3048.7,3046.4,1.65328896]
[1642719693402,0.00397896,3046.7,3046.4,1.65328896]
[1642719693603,0.381,3048.0,3046.7,0.00023951]
[1642719693901,0.00682108,3047.9,3047.1,0.01203507]
[1642719694303,0.00625266,3047.8,3047.1,0.01203507]
[1642719694701,3.6227,3048.7,3047.1,0.01203507]
[1642719694702,0.00568423,3047.7,3047.1,0.01203507]
[1642719695001,3.6227,3048.7,3046.7,0.00023951]
[1642719695002,0.00511581,3047.6,3046.7,0.00023951]
[1642719695400,0.00454739,3047.5,3046.7,0.00023951]
[1642719695800,0.38497896,3047.4,3046.7,0.00023951]
[1642719696000,0.38497896,3047.4,3046.5,0.00113685]
[1642719696001,0.1312,3047.3,3045.9,1.27637636]
[1642719696206,0.00454739,3047.3,3045.9,1.11267636]
[1642719696403,0.00397897,3047.2,3046.0,0.00284211]
[1642719696840,0.00341054,3047.1,3046.0,0.00284211]
[1642719697047,0.00341054,3047.1,3046.0,0.00189738]
[1642719697246,0.00378685,3047.0,3046.0,0.46559738]
[1642719697448,2.01255734,3047.9,3047.0,0.00036149]
[1642719697647,0.1312,3047.9,3047.0,0.00036149]
[1642719697846,0.00397896,3047.7,3047.0,0.00036149]
[1642719698046,0.1312,3047.6,3047.0,0.00036149]
[1642719698247,0.13461054,3047.6,3047.0,0.00036149]
[1642719698447,0.00284212,3047.5,3047.0,0.00036149]
[1642719698649,0.5103439,3047.4,3047.0,0.00036149]
[1642719698953,0.00170527,3047.3,3047.0,0.00036149]
[1642719699150,0.5122,3047.2,3047.0,0.00036149]
[1642719699349,18.95,3047.1,3047.0,0.00036149]
[1642719699648,19.4622,3047.1,3047.0,0.00036149]
[1642719700249,0.5122,3047.1,3047.0,0.00036149]
[1642719700486,0.381,3047.1,3047.0,0.00036149]
[1642719700886,0.00113685,3047.2,3047.0,0.00036149]
[1642719701891,0.00113685,3047.2,3047.0,0.02161502]
[1642719702291,0.38213685,3047.2,3047.0,0.02161502]
[1642719702892,0.38213685,3047.2,3047.0,1.502e-05]
[1642719703094,18.95,3047.1,3047.0,1.502e-05]
[1642719703293,19.4622,3047.1,3047.0,1.502e-05]
[1642719704354,19.331,3047.1,3047.0,1.502e-05]
[1642719704554,0.381,3047.1,3047.0,1.502e-05]
[1642719704756,0.00113685,3047.2,3047.0,1.502e-05]
[1642719705159,0.1312,3047.6,3047.4,0.00118834]
[1642719705360,0.132,3049.9,3047.5,0.22254073]
[1642719705361,0.1312,3049.1,3047.5,0.22254073]
[1642719705560,0.381,3049.2,3047.6,0.1035474]
[1642719705763,6.69871836,3049.6,3047.7,0.95146]
[1642719705764,7.07971836,3049.6,3047.7,0.95146]
[1642719705958,4.01124216,3049.6,3047.9,0.01263085]
[1642719706155,4.01124216,3049.6,3048.1,1.64007]
[1642719706156,0.01364216,3049.6,3048.1,1.64007]
[1642719706557,0.01364216,3049.6,3048.1,1.94007]
[1642719706861,0.01364216,3049.6,3047.9,0.31263085]
[1642719707057,0.01364216,3049.6,3047.9,0.61263085]
[1642719707258,0.01364216,3049.6,3047.9,1.95288085]
[1642719707659,0.01364216,3049.6,3047.9,2.41658085]
[1642719707912,0.01364216,3049.6,3048.6,0.0125653]
[1642719708096,0.01364216,3049.6,3048.9,0.81984]
[1642719708298,0.09464216,3050.4,3049.0,3.0]
[1642719708496,4.3626,3050.8,3049.0,3.0]
[1642719708497,0.131,3050.7,3049.0,3.0]
[1642719708698,0.00397896,3050.3,3049.1,0.00284212]
[1642719709101,0.00341054,3050.2,3049.1,0.00284212]
[1642719709302,0.131,3050.1,3049.1,0.00284212]
[1642719709505,0.131,3050.1,3048.7,0.00511581]
[1642719709506,18.95,3050.0,3048.7,0.00511581]
[1642719709705,18.95,3050.0,3048.1,2.06019]
[1642719709706,18.95227369,3050.0,3048.5,0.00625266]
[1642719709902,0.00170527,3049.9,3048.6,0.131]
[1642719710103,0.00170527,3049.9,3048.3,2.24003]
[1642719710104,0.00170527,3049.9,3048.4,0.13782108]
[1642719710301,0.00113685,3049.8,3048.7,0.00511581]
[1642719710502,0.00113685,3049.8,3048.8,0.131]
[1642719710705,0.00170527,3049.9,3048.7,0.131]
[1642719710902,0.00170527,3049.9,3048.9,0.00397896]
[1642719711102,0.00113685,3049.8,3048.8,0.00454739]
[1642719711304,0.131,3049.7,3048.8,0.00454739]
[1642719711504,0.131,3049.7,3048.5,0.00625266]
[1642719711739,1.33219,3050.0,3048.2,0.13895793]
[1642719711943,1.33219,3050.0,3048.1,2.8803]
[1642719711944,18.95,3049.9,3048.3,0.00738951]
[1642719712146,0.512,3049.8,3048.3,0.00738951]
[1642719712343,0.51313685,3049.8,3048.2,0.00795793]
[1642719713542,0.51313685,3049.8,3048.3,0.95113]
[1642719713743,0.51313685,3049.8,3048.3,0.131]
[1642719713744,0.00113685,3049.8,3048.3,0.131]
[1642719713943,0.00113685,3049.8,3048.5,0.82]
[1642719714143,0.00113685,3049.8,3048.6,0.14355119]
[1642719714343,0.00113685,3049.8,3048.6,0.74923542]
[1642719714547,0.00113685,3049.8,3048.7,0.82510581]
[1642719714750,0.00113685,3049.8,3048.8,0.81995]
[1642719714949,2.60113685,3049.8,3048.9,0.131]
[1642719715145,2.60113685,3049.8,3048.9,0.00397896]
[1642719715420,2.60113685,3049.8,3049.0,0.00341054]
[1642719715719,2.60113685,3049.8,3048.6,1.63997]
[1642719715720,2.60113685,3049.8,3049.1,0.00284212]
[1642719716119,2.60113685,3049.8,3048.8,0.82456739]
[1642719716520,2.60113685,3049.8,3048.9,0.00397896]
[1642719717424,21.30526855,3049.7,3048.7,0.00511581]
[1642719717621,2.35526855,3049.7,3048.7,0.00511581]
[1642719717820,2.35526855,3049.7,3048.4,0.131]
[1642719717821,0.381,3049.6,3048.6,0.00568423]
[1642719718021,0.512,3049.6,3048.5,0.00625266]
[1642719718222,0.681,3049.6,3048.5,0.00625266]
[1642719718622,0.381,3049.6,3048.5,0.00625266]
[1642719719141,18.95,3049.5,3048.5,0.00625266]
[1642719719346,3.733,3049.7,3048.5,0.00625266]
[1642719719347,0.381,3049.4,3048.5,0.00625266]
[1642719719551,3.733,3049.7,3048.5,0.00625266]
[1642719719552,3.602,3049.7,3048.5,0.00625266]
[1642719719746,3.602,3049.7,3048.4,0.13782108]
[1642719719950,3.602,3049.7,3048.6,0.82008]
[1642719720347,3.602,3049.7,3048.7,0.00511581]
[1642719720745,0.131,3050.4,3048.8,2.45]
[1642719720949,3.96547502,3051.7,3048.8,2.45]
[1642719720950,0.381,3051.1,3049.7,0.01260954]
[1642719721155,0.1311,3051.8,3049.8,0.131]
[1642719721156,0.00284211,3050.3,3049.8,0.131]
[1642719721348,0.00284211,3050.3,3049.9,0.07422124]
[1642719721551,0.01292996,3052.3,3049.8,0.131]
[1642719721552,0.00227369,3050.2,3049.8,0.131]
[1642719721747,0.00227369,3050.2,3049.8,1.63927]
[1642719721946,18.95,3051.0,3049.8,1.63927]
[1642719722147,0.0953195,3050.9,3049.1,2.131]
[1642719722348,0.0953195,3050.9,3049.2,0.8199]
[1642719722349,0.4763195,3050.9,3049.2,0.8199]
[1642719722651,0.4763195,3050.9,3049.2,0.82501581]
[1642719722652,0.46825265,3050.9,3049.2,0.82501581]
[1642719722907,0.38554738,3050.9,3049.3,0.00454739]
[1642719723112,0.131,3050.8,3049.3,0.00454739]
[1642719723314,0.131,3050.8,3049.2,1.63953]
[1642719723315,0.381,3050.7,3049.2,1.64464581]
[1642719723515,0.381,3050.7,3049.8,0.01278098]
[1642719723516,0.00341054,3050.7,3049.8,0.01278098]
[1642719723715,0.00284211,3050.6,3049.8,1.65195098]
[1642719724013,0.00227369,3050.5,3049.9,0.30113685]
[1642719724414,0.00170527,3050.4,3049.9,0.30113685]
[1642719724611,0.00170527,3050.4,3050.0,0.131]
[1642719724811,0.00113684,3050.3,3050.0,0.131]
[1642719725219,0.00341054,3050.7,3050.0,0.131]
[1642719725415,0.38441054,3050.7,3049.9,0.00113685]
[1642719725626,0.00284211,3050.6,3049.9,0.00113685]
[1642719725814,0.00284211,3050.6,3049.5,0.81979]
[1642719725815,0.00284211,3050.6,3049.7,0.0022737]
[1642719726015,0.681,3050.7,3049.6,0.00284212]
[1642719726016,0.00227369,3050.5,3049.6,0.00284212]
[1642719726415,0.00170527,3050.4,3049.6,0.00284212]
[1642719726648,0.00170527,3050.4,3049.7,0.81973]
[1642719726850,0.00113684,3050.3,3049.7,0.81973]
[1642719727050,0.00113684,3050.3,3049.8,0.13270527]
[1642719727249,0.00341054,3050.7,3049.8,0.13270527]
[1642719727451,0.00341054,3050.7,3049.9,0.00113685]
[1642719727652,2.6,3050.8,3050.0,0.131]
[1642719727653,0.00284211,3050.6,3050.0,0.131]
[1642719728052,0.00227369,3050.5,3050.0,0.131]
[1642719728255,0.00227369,3050.5,3050.4,3.31288157]
[1642719728455,0.131,3052.0,3050.4,3.31288157]
[1642719728653,0.97226085,3051.9,3050.5,0.131]
[1642719728853,0.00625266,3051.2,3050.5,0.081]
[1642719729054,0.00625266,3051.2,3050.5,1.081]
[1642719729255,0.00568423,3051.1,3050.5,1.081]
[1642719729454,0.00568423,3051.1,3050.5,0.381]
[1642719729655,0.00511581,3051.0,3050.5,0.081]
[1642719730054,0.00454738,3050.9,3050.5,0.081]
[1642719730499,0.00397896,3050.8,3050.5,2.062]
[1642719730697,0.00397896,3050.8,3050.5,1.062]
[1642719730897,0.00341054,3050.7,3050.5,2.062]
[1642719731100,0.00341054,3050.7,3050.5,0.081]
[1642719731302,0.97102876,3052.3,3050.3,5.7605474]
[1642719731303,0.00284211,3050.6,3050.3,5.7605474]
[1642719731497,0.00284211,3050.6,3050.3,0.1035474]
[1642719731699,0.00227369,3050.5,3050.3,0.2345474]
[1642719732098,0.512,3052.1,3050.3,0.2345474]
[1642719732099,0.00170527,3050.4,3050.3,0.2345474]
[1642719732499,0.00170527,3050.4,3050.3,1.5345474]
[1642719732701,5.27e-06,3050.4,3050.3,5.16043817]
[1642719732899,0.03465257,3052.2,3050.3,5.16043817]
[1642719732900,0.131,3052.8,3050.4,0.03053417]
[1642719733105,3.867,3053.0,3050.5,0.381]
[1642719733304,0.00909477,3052.0,3050.7,0.01417644]
[1642719733500,0.00909477,3052.0,3050.6,2.1637]
[1642719733501,0.00909477,3052.0,3051.0,0.01294962]
[1642719733702,0.00852635,3051.9,3051.0,0.01294962]
[1642719733900,0.00852635,3051.9,3051.1,0.512]
[1642719734149,0.00795793,3051.8,3051.1,0.6757]
[1642719734353,0.00795793,3051.8,3051.1,0.9757]
[1642719734555,0.01252778,3053.3,3051.2,0.3]
[1642719734556,0.0073895,3051.7,3051.2,0.3]
[1642719734754,0.0073895,3051.7,3050.9,5.8383]
[1642719734957,0.00682108,3051.6,3050.9,5.8383]
[1642719735156,0.00682108,3051.6,3050.7,2.3876]
[1642719735352,0.131,3052.5,3050.7,2.3876]
[1642719735353,0.00625266,3051.5,3050.7,2.3876]
[1642719735757,0.00568423,3051.4,3050.7,2.3876]
[1642719735956,0.00568423,3051.4,3050.3,0.1035474]
[1642719736158,0.00511581,3051.3,3050.3,0.1035474]
[1642719736357,0.381,3051.2,3050.3,0.1035474]
[1642719736567,0.39626887,3051.2,3049.9,0.13213685]
[1642719736755,0.00397896,3051.1,3049.9,0.00113685]
[1642719736955,0.381,3051.0,3050.0,0.0022737]
[1642719737155,0.38255657,3051.0,3049.8,0.00341054]
[1642719737356,0.00284211,3050.9,3049.8,0.00341054]
[1642719737560,0.381,3050.8,3049.8,0.00341054]